bitfinex-derivatives/quotes_SOLF0:USTF0_20250509
["timestamp","ask_amount","ask_price","bid_price","bid_amount"]
[1746811451244,35.98,171.5,171.42,5.833]
[1746811451444,35.98,171.5,171.39,6.2605837]
[1746811452043,5.83,171.52,171.47,5.8313]
[1746811452341,35.98,171.54,171.4,6.2605837]
[1746811452342,35.98,171.54,171.44,36.28]
[1746811452646,35.98,171.54,171.45,6.26411728]
[1746811452846,35.98,171.54,171.46,3.9703]
[1746811453645,5.8307,171.5,171.46,9.8022]
[1746811454043,5.8307,171.5,171.46,3.9703]
[1746811454348,35.98,171.54,171.41,38.0718]
[1746811454545,35.98,171.54,171.42,6.28417785]
[1746811454747,35.98,171.54,171.41,42.0421]
[1746811454950,35.98,171.54,171.42,6.28538231]
[1746811455150,35.98,171.54,171.41,5.8221]
[1746811455352,35.98,171.54,171.42,6.28594914]
[1746811455546,35.98,171.54,171.43,6.29203623]
[1746811455746,35.98,171.54,171.41,42.0221]
[1746811455947,5.8318,171.47,171.43,5.8328]
[1746811456152,35.98,171.54,171.41,42.0221]
[1746811456349,35.98,171.54,171.42,6.29324534]
[1746811456650,5.8316,171.47,171.43,12.12614534]
[1746811456949,35.98,171.54,171.44,6.29799025]
[1746811457151,5.8316,171.48,171.41,42.0221]
[1746811457450,35.98,171.54,171.42,6.29772533]
[1746811457641,35.98,171.54,171.43,6.30100824]
[1746811457846,35.98,171.54,171.41,42.0221]
[1746811458147,35.98,171.54,171.44,5.8325]
[1746811458653,35.98,171.54,171.45,6.30252458]
[1746811458848,35.98,171.54,171.46,42.30029387]
[1746811459152,35.98,171.54,171.46,36.0]
[1746811459554,5.8299,171.52,171.48,5.8312]
[1746811460150,5.8296,171.53,171.46,36.0]
[1746811460349,5.8296,171.53,171.47,6.30212267]
[1746811460647,5.8296,171.53,171.46,36.0]
[1746811460949,5.8296,171.53,171.49,5.8306]
[1746811461145,5.8299,171.52,171.49,5.8306]
[1746811461551,5.8299,171.52,171.48,5.8311]
[1746811462050,5.8303,171.51,171.48,5.8311]
[1746811462350,35.98,171.54,171.48,5.8311]
[1746811462756,5.8301,171.52,171.48,5.8311]
[1746811463051,5.8301,171.52,171.49,5.8309]
[1746811463251,35.98,171.54,171.46,36.0]
[1746811463443,35.98,171.54,171.47,6.29608566]
[1746811463649,35.96,171.58,171.48,6.29608566]
[1746811463848,5.8286,171.56,171.49,12.04088566]
[1746811464142,5.8286,171.56,171.5,6.29608566]
[1746811464344,35.96,171.58,171.51,6.29366493]
[1746811464643,35.96,171.62,171.52,6.29317776]
[1746811464849,35.96,171.62,171.53,6.29317776]
[1746811465049,35.96,171.62,171.54,6.29317776]
[1746811465249,35.96,171.62,171.51,392.76]
[1746811465550,35.96,171.62,171.52,6.29326022]
[1746811465750,35.96,171.62,171.53,6.29326022]
[1746811465945,5.8277,171.59,171.51,392.76]
[1746811466146,35.96,171.62,171.52,6.29266341]
[1746811466346,35.96,171.68,171.61,5.8267]
[1746811466548,35.96,171.68,171.57,35.72]
[1746811466750,35.96,171.68,171.58,6.28370855]
[1746811466947,5.8267,171.62,171.58,5.8277]
[1746811467148,35.96,171.68,171.57,35.72]
[1746811467343,35.96,171.68,171.6,5.8269]
[1746811467553,35.96,171.68,171.58,5.6623]
[1746811467855,35.96,171.68,171.6,5.8269]
[1746811468554,5.8261,171.64,171.6,5.8269]
[1746811469056,35.96,171.68,171.59,5.8274]
[1746811469352,35.96,171.68,171.58,5.6623]
[1746811470048,35.94,171.72,171.58,369.93103728]
[1746811470252,35.94,171.72,171.59,6.26807031]
[1746811470452,35.94,171.72,171.6,35.94]
[1746811470853,5.8251,171.67,171.63,5.8261]
[1746811471157,35.94,171.72,171.62,35.52]
[1746811471557,5.8251,171.67,171.63,5.8261]
[1746811471959,35.94,171.72,171.62,35.52]
[1746811472555,35.94,171.72,171.6,357.0]
[1746811472759,5.8265,171.62,171.6,357.0]
[1746811472962,35.94,171.66,171.58,6.6623]
[1746811473258,35.94,171.66,171.58,1.0]
[1746811473760,5.8271,171.61,171.58,1.0]
[1746811473955,35.94,171.66,171.58,1.0]
[1746811474357,35.94,171.66,171.58,6.8276]
[1746811474758,35.94,171.66,171.58,1.0]
[1746811475860,5.8275,171.59,171.58,1.0]
[1746811476062,35.94,171.66,171.58,1.0]
[1746811476663,5.8274,171.6,171.58,1.0]
[1746811476855,35.94,171.66,171.58,1.0]
[1746811477557,5.8275,171.59,171.58,1.0]
[1746811479551,5.8296,171.53,171.5,3.7976]
[1746811479757,34.92,171.58,171.48,5.8311]
[1746811480059,34.92,171.58,171.46,427.14]
[1746811480259,5.8299,171.52,171.48,5.831]
[1746811480858,5.8299,171.52,171.49,5.8309]
[1746811481256,5.8297,171.53,171.49,5.8309]
[1746811481464,35.22,171.56,171.46,70.14]
[1746811481960,35.22,171.56,171.53,5.8294]
[1746811482358,503.7,171.62,171.51,34.78]
[1746811482552,538.92,171.62,171.52,3.7696]
[1746811482864,5.8273,171.6,171.52,3.7696]
[1746811483363,5.8273,171.6,171.56,5.8283]
[1746811483657,538.92,171.62,171.52,5.6042]
[1746811483863,35.22,171.62,171.52,5.6042]
[1746811484161,35.22,171.66,171.52,362.6042]
[1746811484952,5.8271,171.61,171.57,5.8279]
[1746811485157,5.8271,171.61,171.52,362.6042]
[1746811485363,35.22,171.66,171.52,362.6042]
[1746811485562,5.8278,171.59,171.55,5.8286]
[1746811485861,35.22,171.66,171.52,362.6042]
[1746811486959,5.8279,171.58,171.52,397.2842]
[1746811487261,35.22,171.66,171.52,397.2842]
[1746811487452,5.8285,171.57,171.53,5.8295]
[1746811487863,5.8285,171.57,171.54,5.8292]
[1746811488263,5.8285,171.57,171.52,362.6042]
[1746811488463,5.8285,171.57,171.53,5.8293]
[1746811489263,5.8285,171.57,171.54,5.8291]
[1746811489659,5.8285,171.57,171.52,5.6042]
[1746811489860,5.8285,171.57,171.53,5.8294]
[1746811490561,5.8285,171.57,171.52,5.6042]
[1746811490963,5.8285,171.57,171.54,5.829]
[1746811491765,5.8285,171.57,171.53,5.8294]
[1746811492464,5.8285,171.57,171.54,5.8292]
[1746811492861,35.22,171.61,171.52,5.6042]
[1746811493070,50.58047176,171.61,171.52,1.8044]
[1746811493665,35.22,171.6,171.52,1.8044]
[1746811494172,5.8289,171.55,171.52,1.8044]
[1746811494763,5.8289,171.55,171.52,7.6341]
[1746811495163,5.8286,171.56,171.52,7.6341]
[1746811495368,5.8286,171.56,171.52,1.8044]
[1746811495768,5.8286,171.56,171.53,5.8293]
[1746811496169,35.22,171.6,171.52,1.8044]
[1746811496374,35.22,171.6,171.55,5.8286]
[1746811496564,35.22,171.6,171.52,1.8044]
[1746811496875,35.22,171.6,171.57,5.8282]
[1746811497372,41.0475,171.6,171.52,1.8044]
[1746811497571,35.22,171.6,171.56,5.8284]
[1746811497870,35.22,171.6,171.52,1.8044]
[1746811498069,35.22,171.6,171.55,5.8286]
[1746811498269,35.22,171.6,171.52,1.8044]
[1746811498466,35.22,171.6,171.58,5.8276]
[1746811498672,35.22,171.6,171.54,6.30678592]
[1746811498871,41.0475,171.6,171.53,33.9]
[1746811499072,35.22,171.6,171.59,5.8275]
[1746811499476,35.22,171.6,171.55,1.8914]
[1746811499770,67.8,171.64,171.56,6.30790229]
[1746811499971,67.8,171.64,171.57,6.3078263]
[1746811500275,67.8,171.64,171.55,1.8914]
[1746811500569,67.8,171.64,171.56,6.30767475]
[1746811500771,67.8,171.64,171.57,12.13567475]
[1746811500972,67.8,171.64,171.55,1.8914]
[1746811500973,5.8267,171.62,171.55,1.8914]
[1746811501173,5.8267,171.62,171.56,6.31113384]
[1746811501373,33.94,171.64,171.57,6.31113384]
[1746811501566,5.8271,171.61,171.55,1.8914]
[1746811501761,5.8271,171.61,171.58,5.8276]
[1746811501968,33.94,171.64,171.55,1.8914]
[1746811502173,33.94,171.64,171.56,6.31264242]
[1746811502375,33.94,171.64,171.57,6.31264242]
[1746811502673,5.8274,171.6,171.55,1.8914]
[1746811502874,33.94,171.64,171.56,12.14771968]
[1746811503070,33.94,171.64,171.57,6.31941968]
[1746811503371,33.94,171.64,171.58,6.32105103]
[1746811503572,67.64,171.68,171.59,6.32105103]
[1746811503874,67.64,171.68,171.6,12.14805103]
[1746811504069,33.94,171.68,171.56,390.94]
[1746811504270,5.8263,171.63,171.57,6.32303068]
[1746811504470,33.66,171.67,171.58,6.32303068]
[1746811504771,33.94,171.68,171.59,6.32303068]
[1746811504970,33.94,171.68,171.61,5.8267]
[1746811505170,33.94,171.68,171.58,33.66]
[1746811505371,33.94,171.68,171.59,6.325155]
[1746811505671,5.8257,171.65,171.61,5.8266]
[1746811506773,5.8257,171.65,171.62,5.8264]
[1746811506972,5.8253,171.66,171.62,5.8264]
[1746811507170,503.74,171.7,171.63,6.32750198]
[1746811507378,33.92,171.71,171.67,5.8248]
[1746811508075,33.92,171.71,171.66,5.8251]
[1746811508276,33.92,171.71,171.63,33.9]
[1746811508476,33.92,171.71,171.64,6.32107622]
[1746811508674,33.92,171.71,171.65,6.32107622]
[1746811508875,33.92,171.71,171.63,35.8398]
[1746811509075,33.92,171.71,171.64,6.3223796]
[1746811509276,33.92,171.71,171.63,35.8398]
[1746811509482,5.8239,171.7,171.64,6.3219647]
[1746811509676,5.8239,171.7,171.63,35.8398]
[1746811509877,5.8239,171.7,171.64,6.32269845]
[1746811510179,39.7435,171.71,171.63,35.8398]
[1746811510478,39.7435,171.71,171.64,6.32175056]
[1746811510680,39.7435,171.71,171.66,5.8249]
[1746811510979,33.92,171.71,171.63,35.8398]
[1746811511175,33.92,171.71,171.62,1.9597]
[1746811511377,33.92,171.71,171.63,5.8261]
[1746811512180,5.8247,171.68,171.63,5.8261]
[1746811512484,33.92,171.71,171.62,7.7862]
[1746811512680,5.8258,171.65,171.59,1.8451]
[1746811512880,33.92,171.66,171.6,6.32069349]
[1746811513076,33.92,171.66,171.61,6.32069349]
[1746811513282,33.92,171.66,171.56,1.9367]
[1746811513481,33.92,171.66,171.57,6.32402281]
[1746811513681,33.92,171.66,171.58,6.32402281]
[1746811513984,33.92,171.66,171.59,6.32402281]
[1746811514186,33.92,171.66,171.6,6.32402281]
[1746811514486,33.92,171.66,171.61,6.32661133]
[1746811514682,33.92,171.66,171.56,1.9367]
[1746811514883,39.7454,171.66,171.61,5.8265]
[1746811515282,33.92,171.66,171.56,1.9367]
[1746811515582,33.92,171.66,171.57,6.32840274]
[1746811515783,33.92,171.66,171.58,6.32840274]
[1746811515984,5.826,171.64,171.6,5.8269]
[1746811516284,33.92,171.66,171.6,5.8269]
[1746811516583,5.826,171.64,171.6,5.8269]
[1746811516785,33.92,171.66,171.56,1.9367]
[1746811516985,33.92,171.66,171.57,6.3299406]
[1746811517177,33.92,171.66,171.58,6.3299406]
[1746811517383,33.92,171.66,171.59,6.3299406]
[1746811517585,39.7454,171.66,171.6,6.3299406]
[1746811517783,39.7454,171.66,171.61,6.3299406]
[1746811517984,39.7454,171.66,171.62,6.3299406]
[1746811518185,39.7454,171.66,171.62,5.8262]
[1746811518386,39.7454,171.66,171.56,1.9367]
[1746811518687,39.7454,171.66,171.57,6.32597718]
[1746811518985,39.7454,171.66,171.56,1.9367]
[1746811518986,33.92,171.66,171.58,40.24597718]
[1746811519289,33.92,171.66,171.62,5.8262]
[1746811519585,39.7453,171.66,171.62,5.8262]
[1746811519788,39.7453,171.66,171.63,5.8261]
[1746811520189,33.92,171.66,171.58,33.92]
[1746811520389,33.92,171.66,171.59,6.3245574]
[1746811520689,33.92,171.66,171.6,6.3245574]
[1746811520878,33.92,171.66,171.57,33.16]
[1746811521084,33.92,171.66,171.58,6.32620208]
[1746811521377,33.92,171.66,171.56,35.0567]
[1746811521378,5.8264,171.63,171.59,6.32644753]
[1746811521582,5.8264,171.63,171.59,5.8273]
[1746811521790,5.8264,171.63,171.56,35.0567]
[1746811522088,5.8265,171.62,171.57,6.3269922]
[1746811522287,33.92,171.66,171.58,6.3269922]
[1746811522487,5.8258,171.64,171.6,5.8271]
[1746811522986,33.92,171.66,171.6,5.8271]
[1746811522987,5.8262,171.63,171.6,5.8271]
[1746811523286,33.92,171.66,171.56,34.9167]
[1746811523488,5.8255,171.65,171.57,6.32464285]
[1746811523690,32.92,171.65,171.58,6.32464285]
[1746811523986,32.92,171.65,171.55,1.8961]
[1746811524187,5.8271,171.61,171.57,5.8282]
[1746811524386,32.92,171.65,171.55,1.8961]
[1746811524589,32.92,171.65,171.56,6.32687801]
[1746811524791,5.8284,171.57,171.54,1.8451]
[1746811525290,33.92,171.61,171.55,6.3296554]
[1746811525491,33.92,171.61,171.54,1.8451]
[1746811525788,33.92,171.61,171.55,6.32852978]
[1746811525981,5.8272,171.6,171.57,5.828]
[1746811526885,33.92,171.61,171.54,1.8451]
[1746811527286,5.8284,171.57,171.53,5.8293]
[1746811527487,5.8284,171.57,171.54,6.33063453]
[1746811527792,5.8284,171.57,171.52,32.8]
[1746811527980,5.8284,171.57,171.53,6.33060286]
[1746811528184,5.8284,171.57,171.54,6.33060286]
[1746811528487,5.8285,171.56,171.52,32.8]
[1746811528789,5.8285,171.56,171.53,6.33122676]
[1746811528984,5.8285,171.56,171.54,6.33122676]
[1746811529190,5.8285,171.56,171.53,5.8293]
[1746811529486,5.8285,171.56,171.54,6.3310027]
[1746811529689,5.8294,171.54,171.48,1.8409]
[1746811529990,32.78,171.55,171.49,6.33230551]
[1746811530292,38.6091,171.55,171.51,5.83]
[1746811530491,32.78,171.59,171.52,6.32481416]
[1746811530796,32.78,171.59,171.51,5.8301]
[1746811531089,32.78,171.59,171.47,34.68]
[1746811531288,5.8294,171.54,171.5,5.8304]
[1746811531486,5.8294,171.54,171.51,6.32395246]
[1746811531687,32.78,171.59,171.52,6.32499023]
[1746811531890,32.78,171.59,171.47,34.68]
[1746811532083,515.2097,171.67,171.48,6.32491206]
[1746811532289,33.81839544,171.66,171.52,1.0]
[1746811532489,65.58,171.66,171.53,42.84531206]
[1746811532691,65.58,171.66,171.54,6.32491206]
[1746811532892,5.8262,171.63,171.55,6.32491206]
[1746811533093,65.58,171.66,171.56,6.32491206]
[1746811533298,71.4052,171.66,171.62,5.8262]
[1746811533492,38.6052,171.66,171.62,5.8262]
[1746811534995,32.78,171.66,171.53,393.5204]
[1746811535197,32.78,171.66,171.54,6.31661305]
[1746811535495,5.8261,171.64,171.6,5.827]
[1746811535695,5.8261,171.64,171.55,1.8856]
[1746811535894,5.8266,171.62,171.56,6.31750033]
[1746811536093,32.78,171.66,171.57,6.31750033]
[1746811536289,32.78,171.66,171.58,6.31750033]
[1746811536489,32.78,171.66,171.59,6.31750033]
[1746811536689,32.78,171.66,171.55,1.8856]
[1746811536889,32.78,171.66,171.56,6.31663704]
[1746811537095,5.8261,171.63,171.57,6.31663704]
[1746811537290,5.8261,171.63,171.58,6.31663704]
[1746811537496,5.8261,171.63,171.55,1.8856]
[1746811537801,5.8261,171.63,171.56,6.31612308]
[1746811537997,5.8265,171.62,171.57,6.31612308]
[1746811538193,5.8265,171.62,171.58,12.14372308]
[1746811538496,32.78,171.66,171.55,1.8856]
[1746811538792,32.78,171.66,171.56,6.32104938]
[1746811538993,32.78,171.66,171.57,6.32104938]
[1746811539198,32.78,171.66,171.58,6.32104938]
[1746811539389,32.78,171.66,171.53,360.7204]
[1746811539586,32.78,171.66,171.54,6.32688106]
[1746811539799,15.36047176,171.63,171.52,1.0]
[1746811540093,32.62,171.62,171.53,6.33157624]
[1746811540294,5.8288,171.56,171.52,6.8298]
[1746811540495,5.8288,171.56,171.53,6.33344922]
[1746811540695,5.8288,171.56,171.52,6.8298]
[1746811540996,32.78,171.61,171.53,6.334511]
[1746811541198,32.78,171.61,171.52,1.0]
[1746811541385,32.78,171.61,171.53,6.33410296]
[1746811541589,32.78,171.61,171.52,1.0]
[1746811541799,32.78,171.61,171.53,6.33534836]
[1746811541995,5.8281,171.58,171.52,1.0]
[1746811542190,32.78,171.61,171.53,6.33681741]
[1746811542389,32.78,171.61,171.54,6.33681741]
[1746811542594,5.8273,171.6,171.56,5.8282]
[1746811542802,32.78,171.61,171.52,1.0]
[1746811542997,32.78,171.61,171.53,6.33677378]
[1746811543193,32.78,171.61,171.54,6.33677378]
[1746811543395,32.78,171.61,171.55,6.33677378]
[1746811543596,32.78,171.61,171.56,6.33677378]
[1746811543898,32.78,171.61,171.53,32.46]
[1746811544099,32.78,171.61,171.54,6.33970661]
[1746811544299,32.78,171.61,171.55,6.33970661]
[1746811544498,32.78,171.61,171.57,5.8279]
[1746811544699,32.78,171.61,171.53,32.46]
[1746811544895,32.78,171.61,171.54,6.34396529]
[1746811545204,32.78,171.61,171.55,6.34396529]
[1746811545498,5.8274,171.6,171.56,12.17236529]
[1746811545694,32.78,171.61,171.56,5.8284]
[1746811546200,5.8278,171.59,171.56,5.8284]
[1746811546599,5.8279,171.58,171.55,5.8288]
[1746811546801,5.8279,171.58,171.56,6.34962616]
[1746811546999,5.8279,171.58,171.55,5.8288]
[1746811547391,32.78,171.61,171.56,6.3504112]
[1746811547596,32.78,171.61,171.53,32.46]
[1746811547896,5.8274,171.6,171.57,5.8281]
[1746811548097,32.78,171.61,171.53,32.46]
[1746811548297,32.78,171.61,171.54,6.35084154]
[1746811548500,32.78,171.61,171.55,6.35084154]
[1746811548800,32.78,171.61,171.56,6.35084154]
[1746811549105,32.78,171.61,171.57,6.3512202]
[1746811549308,1.01438503,171.73,171.58,6.35164245]
[1746811549598,32.8,171.75,171.59,6.35164245]
[1746811549804,33.83769388,171.74,171.58,423.9304]
[1746811550099,16.39816564,171.73,171.58,391.1104]
[1746811550400,16.39816564,171.73,171.62,5.8263]
[1746811550602,1.03769388,171.72,171.58,391.1104]
[1746811550798,32.06,171.71,171.59,6.34113107]
[1746811551098,32.06,171.71,171.6,6.34113107]
[1746811551301,32.06,171.71,171.61,6.34113107]
[1746811551498,32.06,171.71,171.62,6.34113107]
[1746811551700,5.8255,171.65,171.61,5.8268]
[1746811552093,5.8255,171.65,171.62,6.33872303]
[1746811552289,5.8255,171.65,171.61,5.8268]
[1746811552490,5.8255,171.65,171.62,6.33958408]
[1746811552694,5.8255,171.65,171.61,5.8268]
[1746811553000,32.78,171.66,171.58,34.1104]
[1746811553191,64.76,171.66,171.59,6.34008932]
[1746811553394,5.826,171.64,171.6,12.16708932]
[1746811553589,5.826,171.64,171.6,5.827]
[1746811553794,64.76,171.66,171.6,5.827]
[1746811554093,5.826,171.64,171.6,5.827]
[1746811554491,64.76,171.66,171.59,5.8274]
[1746811554693,64.76,171.66,171.55,31.92]
[1746811554897,64.76,171.66,171.56,6.34274449]
[1746811555094,15.36403064,171.63,171.52,1.0]
[1746811555295,15.37136393,171.64,171.52,1.0]
[1746811555492,70.5067,171.62,171.55,5.8286]
[1746811555700,64.68,171.62,171.52,1.0]
[1746811556095,64.68,171.62,171.52,6.8296]
[1746811556293,64.68,171.62,171.52,1.0]
[1746811557601,5.8284,171.57,171.53,5.8295]
[1746811557807,64.68,171.62,171.52,1.0]
[1746811558308,5.8291,171.55,171.52,1.0]
[1746811559306,5.8286,171.56,171.52,6.8298]
[1746811559507,64.68,171.62,171.52,1.0]
[1746811560208,5.8291,171.55,171.52,1.0]
[1746811560405,31.86,171.57,171.52,1.0]
[1746811560806,5.8295,171.53,171.52,1.0]
[1746811563111,63.46,171.57,171.52,1.0]
[1746811563611,5.8291,171.55,171.52,1.0]
[1746811563910,31.86,171.58,171.52,1.0]
[1746811564209,5.8282,171.57,171.52,1.0]
[1746811564409,31.86,171.58,171.52,1.0]
[1746811564605,5.8289,171.55,171.52,1.0]
[1746811565212,5.8289,171.55,171.52,6.8299]
[1746811565405,31.86,171.58,171.52,1.0]
[1746811566111,5.8291,171.55,171.52,1.0]
[1746811566410,5.8291,171.55,171.52,6.8296]
[1746811566614,5.8287,171.56,171.52,1.0]
[1746811567110,5.829,171.55,171.52,1.0]
[1746811567516,5.829,171.55,171.52,6.8296]
[1746811568013,31.86,171.58,171.52,1.0]
[1746811568508,5.8295,171.53,171.52,1.0]
[1746811569423,37.6895,171.53,171.52,1.0]
[1746811571520,31.86,171.53,171.43,3.6666]
[1746811571915,5.8316,171.47,171.44,5.8323]
[1746811572216,31.86,171.53,171.44,5.8323]
[1746811572412,5.8319,171.47,171.43,3.6666]
[1746811572617,31.86,171.53,171.43,3.6666]
[1746811573023,31.86,171.53,171.43,35.5266]
[1746811573325,31.86,171.53,171.43,392.5266]
[1746811573623,31.86,171.57,171.54,5.8289]
[1746811573819,31.86,171.57,171.49,31.44]
[1746811574024,31.86,171.57,171.5,1.8991]
[1746811575626,5.8286,171.56,171.52,5.8298]
[1746811576228,5.8286,171.56,171.53,5.8295]
[1746811576426,37.6883,171.57,171.53,5.8295]
[1746811576624,31.86,171.57,171.53,5.8295]
[1746811577024,5.8286,171.56,171.53,5.8295]
[1746811577221,31.86,171.57,171.54,5.8292]
[1746811577426,31.86,171.57,171.5,1.8991]
[1746811577626,5.8286,171.56,171.5,1.8991]
[1746811577826,31.86,171.57,171.5,1.8991]
[1746811578422,37.6884,171.57,171.54,5.8292]
[1746811578622,31.86,171.57,171.5,1.8991]
[1746811579028,5.8288,171.56,171.53,5.8295]
[1746811579731,5.8289,171.55,171.52,5.8297]
[1746811580429,5.8297,171.53,171.5,5.8305]
[1746811580629,31.86,171.57,171.47,31.3]
[1746811580928,31.86,171.57,171.45,33.7333]
[1746811581130,31.86,171.57,171.46,31.3]
[1746811581725,5.8298,171.53,171.49,5.8308]
[1746811582028,31.86,171.57,171.46,31.3]
[1746811582327,5.8297,171.53,171.49,5.8307]
[1746811582528,5.8297,171.53,171.46,31.3]
[1746811583129,31.86,171.57,171.46,31.3]
[1746811583731,31.86,171.57,171.46,42.9637]
[1746811584225,503.6,171.66,171.46,31.3]
[1746811584432,63.16,171.65,171.49,15.37136393]
[1746811584630,63.16,171.65,171.5,31.86]
[1746811584831,63.16,171.65,171.51,35.1061]
[1746811585226,63.16,171.65,171.57,5.8279]
[1746811585427,63.16,171.65,171.52,1.9926]
[1746811586325,5.8281,171.58,171.52,1.9926]
[1746811586831,5.8281,171.58,171.55,5.8288]
[1746811587433,31.86,171.6,171.52,1.9926]
[1746811588429,5.8269,171.61,171.59,5.8272]
[1746811588634,31.28,171.64,171.52,1.9926]
[1746811589027,5.8266,171.62,171.52,1.9926]
[1746811589928,37.106,171.64,171.52,1.9926]
[1746811590625,31.28,171.64,171.52,1.9926]
[1746811591233,5.8266,171.62,171.59,5.8275]
[1746811591435,31.28,171.64,171.52,1.9926]
[1746811591835,5.8265,171.62,171.59,5.8273]
[1746811592036,31.28,171.64,171.52,1.9926]
[1746811592236,31.28,171.64,171.58,5.8278]
[1746811592431,31.28,171.64,171.52,1.9926]
[1746811592939,5.8263,171.63,171.6,5.8271]
[1746811593139,31.28,171.64,171.52,1.9926]
[1746811593745,5.8266,171.62,171.6,5.8271]
[1746811594039,31.28,171.68,171.56,31.28]
[1746811594240,5.8237,171.71,171.68,5.8244]
[1746811594745,31.28,171.72,171.62,62.56]
[1746811595338,37.1033,171.72,171.69,5.824]
[1746811595541,31.28,171.72,171.62,62.56]
[1746811595943,5.8236,171.71,171.68,5.8243]
[1746811596342,5.8236,171.71,171.62,62.56]
[1746811596543,37.1032,171.72,171.62,62.56]
[1746811596742,31.28,171.72,171.62,77.93136393]
[1746811596944,31.26,171.76,171.62,77.93136393]
[1746811597245,31.26,171.76,171.63,11.6523]
[1746811597634,5.8229,171.73,171.63,11.6523]
[1746811597943,31.26,171.76,171.62,139.93136393]
[1746811599245,37.082,171.76,171.63,11.6522]
[1746811599545,31.26,171.8,171.66,15.37136393]
[1746811599741,31.26,171.8,171.67,68.2753]
[1746811600143,31.26,171.83,171.7,15.37136393]
[1746811600446,5.8201,171.81,171.7,15.37136393]
[1746811600647,31.26,171.83,171.69,15.37136393]
[1746811601141,31.26,171.83,171.67,5.7553]
[1746811601345,31.26,171.83,171.68,31.26]
[1746811601645,5.822,171.76,171.72,5.8228]
[1746811601844,5.822,171.76,171.68,31.26]
[1746811602250,31.26,171.78,171.71,5.8232]
[1746811602435,62.52,171.78,171.71,5.8232]
[1746811602845,5.8224,171.74,171.71,5.8232]
[1746811603445,5.8222,171.75,171.72,5.823]
[1746811603650,62.52,171.78,171.68,31.26]
[1746811604142,5.8221,171.75,171.71,5.8233]
[1746811604746,62.52,171.78,171.71,5.8233]
[1746811604747,5.8225,171.74,171.71,5.8233]
[1746811604948,62.52,171.78,171.7,5.8236]
[1746811605141,62.52,171.78,171.68,31.26]
[1746811605547,5.8221,171.75,171.71,5.8234]
[1746811605746,62.52,171.78,171.71,5.8234]
[1746811605947,5.8228,171.73,171.7,5.8237]
[1746811606348,62.52,171.78,171.68,31.26]
[1746811606546,5.8224,171.75,171.71,5.8232]
[1746811607049,5.8227,171.74,171.7,5.8237]
[1746811607350,62.52,171.78,171.7,5.8237]
[1746811607649,62.52,171.78,171.68,31.26]
[1746811607946,62.52,171.78,171.72,5.8231]
[1746811608450,5.8223,171.75,171.72,5.8231]
[1746811608752,62.52,171.78,171.71,5.8233]
[1746811609053,5.8223,171.75,171.68,31.26]
[1746811609350,62.52,171.78,171.68,31.26]
[1746811610047,62.52,171.78,171.71,5.8232]
[1746811610542,62.52,171.78,171.68,31.26]
[1746811610743,62.52,171.78,171.67,35.1419]
[1746811611254,62.52,171.78,171.67,5.8247]